bitfinex/quotes_ETHUSD_20250214
["timestamp","ask_amount","ask_price","bid_price","bid_amount"]
[1739549719576,4.23849,2722.2,2721.4,3.67454]
[1739549719876,4.23849,2722.2,2720.5,3.91063763]
[1739549719877,1.5911,2721.5,2720.5,3.91063763]
[1739549720033,0.55,2721.4,2720.8,3.67529]
[1739549720228,0.0075,2721.3,2720.8,3.67529]
[1739549720610,0.0075,2721.3,2720.5,3.91063763]
[1739549720725,0.55,2721.4,2720.9,3.8257534]
[1739549720928,0.55,2721.4,2720.9,0.1505034]
[1739549721127,0.55,2721.0,2720.9,0.1505034]
[1739549721372,2.0886,2721.0,2720.9,0.1505034]
[1739549721525,5.77121,2721.0,2720.9,0.1505034]
[1739549721968,2.0886,2721.0,2720.9,0.1505034]
[1739549722529,2.18899023,2721.4,2720.9,3.8257534]
[1739549722788,1.5311,2721.4,2721.1,3.67486]
[1739549723073,0.9118205,2722.2,2721.7,3.0]
[1739549723074,5.3873445,2722.2,2721.7,3.0]
[1739549723273,1.5311,2722.2,2721.8,3.67395]
[1739549723627,1.5311,2722.2,2721.7,3.0]
[1739549723865,1.5311,2722.2,2722.0,3.67374]
[1739549724033,11.02494,2722.7,2722.1,3.67363]
[1739549724227,0.0075,2722.6,2722.1,3.0]
[1739549724628,0.565,2722.6,2722.1,6.67353]
[1739549724875,7.3521,2722.7,2721.8,3.0]
[1739549725075,7.3521,2722.7,2722.5,3.0]
[1739549725704,0.0075,2722.5,2720.9,0.1505034]
[1739549725849,0.55,2721.9,2721.5,3.67434]
[1739549726389,0.55,2721.9,2721.6,3.0]
[1739549726950,0.0075,2721.8,2721.4,3.0]
[1739549727195,0.015,2721.6,2721.1,3.67492]
[1739549727688,3.68935,2721.6,2721.0,3.0]
[1739549727893,0.015,2721.6,2721.3,3.0]
[1739549728061,0.015,2721.6,2721.0,3.67502]
[1739549728398,5.20496,2722.0,2721.3,3.0]
[1739549728563,1.5311,2722.0,2721.4,3.67449]
[1739549728890,0.565,2721.9,2721.5,3.67438]
[1739549729091,4.23891,2721.9,2721.4,3.0]
[1739549729494,0.565,2721.9,2721.4,6.67455]
[1739549729645,0.565,2721.9,2721.4,3.0]
[1739549729847,0.565,2721.9,2721.6,3.0]
[1739549730665,0.565,2721.9,2721.6,6.67429]
[1739549730867,0.565,2721.9,2721.6,3.0]
[1739549731378,3.67329,2722.4,2721.6,3.0]
[1739549731379,3.67329,2722.4,2721.6,6.6743]
[1739549731699,3.67329,2722.4,2721.2,3.67481]
[1739549731700,5.821,2722.7,2721.9,3.0]
[1739549731897,5.821,2722.7,2722.4,3.67316]
[1739549732112,5.821,2722.7,2722.3,3.0]
[1739549732293,5.821,2722.7,2722.3,6.67334]
[1739549732499,0.55,2722.6,2722.3,3.0]
[1739549732667,0.5575,2722.6,2722.1,3.0]
[1739549732868,0.5575,2722.6,2722.1,6.67355]
[1739549733087,0.5575,2722.6,2722.1,3.0]
[1739549733283,0.5575,2722.2,2721.7,3.67407]
[1739549733467,0.0075,2722.2,2721.4,3.67453]
[1739549733701,0.0075,2722.2,2722.0,3.67363]
[1739549733873,0.55,2722.3,2722.2,3.67349]
[1739549734210,0.565,2722.6,2722.3,3.0]
[1739549734418,0.5575,2722.6,2722.4,3.67314]
[1739549734885,0.5575,2722.6,2722.2,6.67341]
[1739549735080,0.0075,2722.5,2722.1,3.0]
[1739549735284,0.0075,2722.2,2721.7,3.67406]
[1739549735498,0.0075,2722.2,2721.8,3.67395]
[1739549735694,0.0075,2722.2,2721.7,3.67414]
[1739549735909,0.798665,2722.2,2721.7,3.67414]
[1739549736212,0.0075,2722.2,2721.5,3.0]
[1739549736410,5.821,2722.7,2721.5,4.2745602]
[1739549736611,0.565,2722.6,2722.3,3.0]
[1739549737594,0.565,2722.6,2722.3,6.67333]
[1739549737907,4.23796,2722.6,2721.6,6.6743]
[1739549738113,0.55,2722.4,2722.1,3.0]
[1739549738613,0.0075,2722.3,2721.9,3.0]
[1739549738799,0.0075,2722.3,2722.0,3.67375]
[1739549739311,0.55,2722.4,2722.1,3.0]
[1739549739515,4.710156,2722.4,2721.9,3.67383]
[1739549739721,2.1652,2722.1,2721.3,1.6331]
[1739549740020,2.1652,2722.1,2721.7,3.67417]
[1739549740182,2.1652,2722.1,2721.5,3.67441]
[1739549740183,0.0075,2721.8,2721.5,3.67441]
[1739549740377,3.68905,2721.8,2721.3,3.67462]
[1739549740614,0.015,2721.6,2721.3,3.67462]
[1739549740805,0.015,2721.6,2721.4,6.67454]
[1739549741017,0.0075,2721.6,2721.4,6.67451]
[1739549741573,0.015,2721.8,2721.5,3.0]
[1739549741820,1.6077,2722.1,2721.6,3.67419]
[1739549742028,0.565,2722.0,2721.6,3.67419]
[1739549742522,0.0075,2721.7,2721.5,3.0]
[1739549743126,0.0075,2721.7,2721.5,6.67443]
[1739549743278,0.5575,2722.0,2721.5,6.67441]
[1739549743475,0.28945034,2721.9,2721.5,6.67441]
[1739549743787,0.0075,2721.8,2721.5,3.0]
[1739549744004,0.0075,2721.8,2721.5,6.67444]
[1739549744493,0.565,2721.8,2721.5,3.0]
[1739549744791,0.565,2721.8,2721.5,6.67438]
[1739549744998,0.565,2721.8,2721.5,3.0]
[1739549745196,5.05927803,2721.8,2721.5,3.0]
[1739549745396,1.38522803,2721.8,2721.5,3.0]
[1739549745732,5.05933803,2721.8,2721.5,3.0]
[1739549746030,8.73348803,2721.8,2721.5,3.0]
[1739549746195,0.565,2721.6,2721.5,3.0]
[1739549746584,6.7203488,2721.6,2721.2,3.0]
[1739549746926,6.7203488,2721.6,2721.1,3.67496]
[1739549747093,6.7203488,2721.6,2721.2,3.0]
[1739549747094,3.0460488,2721.6,2721.2,3.0]
[1739549747429,3.0460488,2721.6,2721.2,6.67484]
[1739549748025,2.1727,2721.6,2721.3,3.67464]
[1739549748383,2.1727,2721.6,2721.2,6.67484]
[1739549749030,0.72093339,2721.5,2721.3,3.67459]
[1739549749330,3.67405,2721.8,2721.3,3.67471]
[1739549749628,0.5575,2721.7,2721.3,3.67463]
[1739549749826,0.5575,2721.7,2721.4,3.67451]
[1739549750027,5.57106034,2721.9,2721.7,3.6741]
[1739549750028,1.6077,2721.9,2721.7,3.6741]
[1739549750514,1.6077,2721.9,2721.6,3.0]
[1739549750681,0.55,2721.8,2721.7,3.67417]
[1739549750884,4.41133745,2722.1,2721.5,6.67432]
[1739549751124,1.7015242,2722.1,2721.4,3.67455]
[1739549751327,11.05132,2722.5,2721.6,1.5505]
[1739549751530,3.67361,2722.2,2721.7,6.67409]
[1739549751738,0.5575,2722.1,2721.7,6.67409]
[1739549751918,0.0075,2722.1,2721.9,3.0]
[1739549752099,0.0075,2722.1,2721.9,6.67387]
[1739549752299,0.18500953,2722.4,2722.2,3.67348]
[1739549752513,8.09780963,2722.5,2722.2,3.67348]
[1739549752738,8.09780963,2722.5,2722.2,3.6734]
[1739549752739,0.55,2722.4,2722.2,3.6734]
[1739549752911,0.55,2722.4,2722.3,6.67336]
[1739549753329,0.55,2722.4,2722.3,3.0]
[1739549753525,0.0075,2722.3,2722.0,3.67369]
[1739549753831,0.55,2722.4,2722.3,3.0]
[1739549754035,5.824,2722.5,2722.0,3.92219605]
[1739549754203,5.824,2722.5,2722.3,3.67328]
[1739549754619,5.824,2722.5,2722.1,3.6736]
[1739549754620,0.55,2722.4,2722.1,3.6736]
[1739549755323,0.55,2722.4,2722.0,3.67375]
[1739549755750,0.55,2722.4,2722.2,3.67349]
[1739549755953,0.55,2722.4,2722.1,3.67363]
[1739549756135,0.55,2722.4,2722.2,3.0]
[1739549756747,0.55,2722.4,2722.2,2.0008]
[1739549757140,5.824,2722.5,2721.8,5.2245]
[1739549757540,5.824,2722.5,2722.2,3.67341]
[1739549758570,5.824,2722.5,2722.3,3.67334]
[1739549758977,5.824,2722.5,2722.4,3.67322]
[1739549759867,5.824,2722.5,2722.2,3.0]
[1739549760021,5.824,2722.5,2722.0,3.92219605]
[1739549760022,0.55,2722.4,2722.0,3.67376]
[1739549760670,0.55,2722.4,2722.1,3.0]
[1739549761043,0.55,2722.4,2722.1,3.67362]
[1739549761241,0.55,2722.4,2722.3,3.67336]
[1739549761571,0.55,2722.4,2722.3,6.67336]
[1739549762383,0.55,2722.4,2722.3,3.0]
[1739549764128,0.55,2722.4,2721.7,3.92219605]
[1739549764129,0.55,2722.0,2721.6,3.67423]
[1739549764425,0.015,2721.9,2721.1,5.47269605]
[1739549764658,4.22438,2721.6,2721.0,3.67502]
[1739549764854,0.55,2721.4,2721.0,3.67502]
[1739549765277,4.22458,2721.4,2720.9,0.1505034]
[1739549765573,0.790656,2721.3,2720.9,3.8256734]
[1739549765806,0.790656,2721.3,2721.0,3.0]
[1739549765954,2.1042,2721.4,2721.0,3.0]
[1739549766285,2.1042,2721.4,2720.9,0.1505034]
[1739549766286,4.22505,2721.1,2720.9,0.1505034]
[1739549766569,0.0075,2721.0,2720.9,0.1505034]
[1739549767142,0.015,2721.0,2720.9,0.1505034]
[1739549767341,4.24011,2721.0,2720.9,0.1505034]
[1739549767542,6.718727,2721.0,2720.9,0.1505034]
[1739549768857,0.0075,2720.0,2719.4,5.20135]
[1739549769084,0.0075,2720.0,2719.1,1.5241]
[1739549769085,0.0075,2719.9,2719.1,1.5241]
[1739549769231,0.55,2719.8,2719.5,3.67704]
[1739549769627,0.5575,2720.1,2719.3,7.59959605]
[1739549769876,1.15465657,2720.1,2719.3,3.92219605]
[1739549770169,4.60514521,2720.2,2719.6,3.67701]
[1739549770365,0.55,2720.1,2719.6,3.0]
[1739549770569,0.55,2720.1,2719.3,3.92219605]
[1739549770570,0.0075,2720.0,2719.4,3.0]
[1739549770874,0.55,2719.2,2718.4,4.4041199]
[1739549771075,0.55,2719.0,2718.5,3.67841]
[1739549771240,2.38065487,2719.4,2718.6,3.92219605]
[1739549771445,0.3,2719.6,2719.0,3.92219605]
[1739549771646,5.825,2720.4,2719.5,3.67714]
[1739549771647,0.3,2720.0,2719.5,3.67714]
[1739549771947,0.3,2719.8,2719.3,3.92219605]
[1739549772157,0.2,2720.0,2719.8,3.67667]
[1739549772496,0.2,2720.0,2719.2,3.6775]
[1739549772497,0.2,2719.3,2719.2,7.59974605]
[1739549772628,0.2,2719.3,2718.2,0.0075]
[1739549772629,0.2,2719.1,2718.6,3.92219605]
[1739549772829,0.55,2719.0,2718.8,3.67807]
[1739549773178,0.55,2719.0,2718.6,3.92219605]
[1739549773179,0.1,2719.2,2718.9,3.67784]
[1739549773511,0.1,2719.2,2718.9,7.60003605]
[1739549774213,0.1,2719.2,2718.9,11.27789605]
[1739549774366,0.1,2719.2,2718.9,7.60003605]
[1739549774570,0.1,2719.2,2718.9,11.27788605]
[1739549774907,0.1,2719.2,2718.9,7.60003605]
[1739549775116,0.2,2719.7,2719.2,3.67747]
[1739549775309,0.2,2719.7,2719.4,3.88417406]
[1739549775511,0.2,2719.9,2719.7,3.67687]
[1739549775829,0.2,2720.1,2719.8,7.56080406]
[1739549775963,0.1,2720.3,2720.2,3.6762]
[1739549775964,0.2,2720.3,2720.2,3.6762]
[1739549776168,5.825,2720.4,2720.3,3.67606]
[1739549776363,0.2494821,2720.5,2720.4,6.67593]
[1739549776570,0.2494821,2720.5,2720.4,6.71268374]
[1739549776974,0.2,2721.6,2721.3,3.67469]
[1739549777213,11.1331,2721.9,2720.6,3.67552]
[1739549777214,6.127,2721.9,2721.7,3.67414]
[1739549777629,6.127,2721.9,2721.5,3.67431]
[1739549777829,0.1,2721.7,2721.1,8.40827406]
[1739549778004,0.1,2721.5,2721.1,5.40827406]
[1739549778183,0.1,2721.3,2720.8,5.40827406]
[1739549778525,0.1,2721.5,2721.2,3.67479]
[1739549778914,0.2,2721.6,2721.2,3.67479]
[1739549779134,0.2,2721.6,2721.3,3.67461]
[1739549779325,7.16129978,2721.9,2721.7,3.67417]
[1739549779326,0.2,2721.8,2721.7,3.67417]
[1739549779632,0.2,2721.8,2721.0,3.67505]
[1739549779633,0.1,2721.5,2721.2,3.0]
[1739549779833,0.1,2721.5,2721.2,6.67472]
[1739549779986,0.1,2721.5,2721.3,3.67462]
[1739549780188,0.2,2721.8,2721.4,3.88417406]
[1739549780392,5.827,2721.9,2721.8,3.67403]
[1739549780633,0.2,2721.8,2721.7,3.67406]
[1739549780982,5.827,2721.9,2721.7,3.67406]
[1739549781236,5.827,2721.9,2721.8,3.67403]
[1739549781535,1.104699,2722.4,2722.1,3.67363]
[1739549781724,0.2,2722.2,2722.0,3.88417406]
[1739549782041,0.1,2722.1,2721.8,3.67402]
[1739549782531,0.2,2722.2,2721.8,3.67402]
[1739549782532,0.2,2722.2,2721.8,3.67395]
[1739549782832,0.1,2722.3,2721.9,3.67384]
[1739549783840,0.2,2722.4,2722.2,3.67349]
[1739549783989,0.1,2722.5,2722.4,3.67322]
[1739549785127,0.1,2722.5,2722.1,6.67353]
[1739549785325,0.1,2722.4,2722.1,3.0]
[1739549785511,0.1,2722.4,2722.1,3.67355]
[1739549785697,0.2,2721.9,2721.6,1.584]
[1739549785900,0.2,2721.9,2721.6,3.6743]
[1739549786098,0.2,2721.9,2721.8,3.67403]
[1739549786402,0.2,2722.1,2721.8,3.67403]
[1739549786611,0.3,2722.4,2722.2,3.67347]
[1739549786810,0.3,2722.4,2722.0,3.67364]
[1739549787021,0.2,2722.3,2722.0,3.67364]
[1739549787224,0.2,2722.3,2722.2,3.67349]
[1739549787391,0.1,2722.0,2721.9,3.67384]
[1739549787596,0.1,2722.0,2721.8,1.584]
[1739549787941,0.1,2721.8,2721.1,1.584]
[1739549788240,0.3,2722.1,2721.2,6.87760499]
[1739549788443,0.3,2722.1,2721.8,3.67392]
[1739549788639,0.1,2721.9,2721.8,3.67392]
[1739549788865,0.2,2722.1,2722.0,3.67376]
[1739549789021,0.1,2722.4,2722.3,3.67336]
[1739549789400,0.3,2722.4,2722.2,3.67349]
[1739549789703,0.3,2722.4,2722.2,7.34681]
[1739549789920,0.3,2722.4,2722.3,3.67336]
[1739549790299,0.3,2722.4,2722.0,3.67368]
[1739549790505,0.1,2722.2,2722.0,3.67368]
[1739549790744,0.3,2722.4,2722.3,3.67336]
[1739549791512,0.1,2722.1,2721.9,3.6739]
[1739549791743,0.1,2721.9,2721.7,3.67409]
[1739549791897,0.1,2721.9,2721.5,8.25835]
[1739549791898,0.2,2721.8,2721.5,3.67435]
[1739549792103,0.1,2721.7,2721.3,3.67462]
[1739549792361,0.1,2721.7,2721.4,3.67457]
[1739549792517,0.497397,2721.7,2721.4,3.67457]
[1739549793261,0.497397,2721.7,2721.4,3.67451]
[1739549793858,0.497397,2721.7,2721.3,3.0]
[1739549794070,0.1,2721.3,2720.9,3.67518]
[1739549794217,0.2,2720.8,2720.7,3.67552]
[1739549794746,0.3,2721.3,2720.9,3.67525]
[1739549794954,0.1,2721.3,2721.2,3.67484]
[1739549795268,0.3,2721.6,2721.4,3.67446]
[1739549795470,0.3,2721.6,2721.2,3.67472]
[1739549795672,0.1,2721.2,2721.0,3.67503]
[1739549795877,0.3,2721.2,2720.8,3.67534]
[1739549796025,0.3,2721.0,2720.4,3.67584]
[1739549796221,4.07241,2721.2,2720.4,3.67584]
[1739549796222,0.2,2721.1,2720.4,0.03675086]
[1739549796427,0.2,2721.1,2720.8,3.6753]
[1739549796650,0.3,2720.9,2720.6,3.67562]
[1739549796853,0.3,2720.9,2720.3,1.6159]
[1739549797065,0.3,2720.9,2720.5,3.67574]
[1739549797271,0.3,2720.9,2720.6,3.67563]
[1739549797857,0.2,2720.9,2720.8,3.67538]
[1739549798029,0.2,2721.1,2720.8,3.67538]
[1739549798579,0.1,2721.2,2720.3,5.29193]
[1739549798580,0.1,2721.2,2720.9,3.67524]
[1739549798726,0.2,2721.1,2720.7,3.67545]
[1739549798933,3.87505,2721.1,2720.7,3.0]
[1739549799268,0.3,2720.9,2720.5,3.67571]
[1739549799427,0.2,2720.9,2720.3,1.6159]
[1739549799630,0.2,2720.9,2720.7,3.67539]
[1739549799855,0.1,2720.3,2719.9,1.6159]
[1739549800058,0.1,2720.3,2719.9,5.29244]
[1739549800366,0.1,2720.3,2719.9,3.6765]
[1739549800612,3.77606,2720.3,2719.7,3.67675]
[1739549800748,3.77606,2720.3,2719.8,3.67667]
[1739549800951,4.541245,2720.3,2719.8,3.0]
[1739549801152,0.865185,2720.3,2719.9,3.6766]
[1739549801411,0.865185,2720.3,2720.0,3.0]
[1739549801706,0.1,2720.3,2720.0,3.0]
[1739549801878,0.2,2720.1,2719.9,3.67653]
[1739549802207,0.3,2720.7,2720.4,3.67581]
[1739549802495,0.2,2720.7,2720.6,3.67565]
[1739549802698,0.3,2720.9,2720.6,3.67555]
[1739549802902,0.2,2720.9,2720.4,3.0]
[1739549803067,5.825,2721.3,2721.0,3.6751]
[1739549803251,5.825,2721.3,2721.2,3.67484]
[1739549803671,0.3,2721.6,2721.3,3.67466]
[1739549803869,0.2,2721.8,2721.5,3.67431]
[1739549804072,0.2,2721.8,2721.6,3.6743]
[1739549804316,0.2,2721.8,2721.4,3.67446]
[1739549804814,0.2,2721.8,2721.5,3.67434]
[1739549805318,0.2,2721.8,2721.3,3.67464]
[1739549805514,0.1,2721.4,2721.1,3.67493]
[1739549805687,0.2,2721.3,2720.9,3.67516]
[1739549806074,0.2,2721.3,2721.0,3.0]
[1739549806278,0.2,2721.3,2721.0,6.67505]
[1739549806490,0.2,2721.3,2721.0,3.0]
[1739549806888,0.2,2721.3,2721.0,6.67504]
[1739549807118,0.2,2721.3,2721.2,3.67484]
[1739549807505,0.2,2721.3,2721.0,3.67509]
[1739549807830,0.1,2721.4,2720.8,4.6159]
[1739549808032,0.1,2721.2,2720.8,5.29128]
[1739549808354,0.1,2721.2,2720.9,3.67524]
[1739549808550,0.2,2721.3,2721.0,3.67507]
[1739549808749,0.2,2721.3,2721.2,3.67484]
[1739549808913,0.2,2721.2,2720.9,3.67518]
[1739549809114,0.2,2721.2,2720.8,3.67537]
[1739549809115,0.3,2721.2,2720.8,3.67537]
[1739549809310,0.1,2721.0,2720.7,3.67551]
[1739549809546,0.3,2721.0,2720.7,3.67551]
[1739549809927,0.1,2720.8,2720.5,5.29157]
[1739549810126,0.1,2720.8,2720.5,3.0]
[1739549810127,0.3,2720.8,2720.5,3.0]
[1739549810446,0.3,2720.8,2720.6,3.67556]
[1739549811267,0.3,2720.8,2720.7,3.67552]
[1739549811614,0.3,2720.8,2720.6,3.67556]
[1739549811845,0.2,2720.8,2720.6,3.67556]
[1739549812040,0.3,2720.8,2720.6,3.67556]
[1739549812245,0.2,2720.8,2720.7,3.67552]
[1739549812755,0.2,2721.0,2720.9,3.67525]
[1739549813459,0.2,2721.0,2720.8,3.67538]
[1739549814362,0.2,2720.8,2720.6,3.67565]
[1739549814542,0.2,2720.8,2720.6,7.35122]
[1739549814742,0.2,2720.8,2720.7,3.67552]
[1739549815167,0.2,2720.8,2720.5,6.67571]
[1739549815363,0.2,2720.8,2720.3,4.6219]
[1739549815364,0.2,2720.8,2720.6,3.67553]
[1739549815672,0.2,2720.8,2720.6,7.35109]
[1739549816060,0.2,2720.8,2720.7,3.67552]
[1739549816670,0.3,2721.0,2720.6,3.67553]
[1739549817035,0.3,2721.0,2720.7,3.67552]
[1739549817780,3.92434,2721.3,2721.2,3.67484]
[1739549817781,0.2496,2721.3,2721.2,3.67484]
[1739549817949,0.2496,2721.3,2721.1,3.67498]
[1739549818149,0.2,2721.2,2721.1,3.67498]
[1739549819185,0.2496,2721.3,2721.1,3.67498]
[1739549819366,0.1,2721.0,2720.6,8.23735]
[1739549819534,0.1,2721.0,2720.9,3.0]
[1739549820235,0.697489,2721.0,2720.4,3.67582]
[1739549820437,0.3,2720.8,2720.5,3.67575]
[1739549820657,0.3,2720.8,2720.6,3.67565]
[1739549820874,0.3,2720.8,2720.5,3.67573]
[1739549821072,0.2,2720.3,2719.9,3.67648]
[1739549821381,0.2,2720.3,2719.9,3.6766]
[1739549821540,0.2,2720.3,2720.0,3.67634]
[1739549822168,0.2,2720.3,2720.0,7.35274]
[1739549822475,0.2,2720.3,2720.2,3.6762]
[1739549823039,0.1,2720.4,2720.2,3.6762]
[1739549823235,0.1,2720.4,2720.1,3.67632]
[1739549823236,0.3,2720.7,2719.9,6.91711702]
[1739549823441,0.2,2720.9,2720.7,3.67541]
[1739549823686,0.2,2720.9,2720.8,3.67538]
[1739549824190,0.3,2721.1,2720.8,3.67538]
[1739549824386,0.3,2721.1,2720.4,5.23759]
[1739549824387,0.5496,2721.3,2721.1,3.67488]
[1739549824594,0.5496,2721.3,2721.1,3.67498]
[1739549824742,0.5496,2721.3,2721.0,3.67511]
[1739549825087,0.2496,2721.3,2721.2,12.11689882]
[1739549825873,0.2496,2721.3,2721.2,8.23654]
[1739549827056,0.2496,2721.3,2721.2,3.67484]
[1739549827304,0.4496,2721.3,2721.2,3.67484]
[1739549828360,0.5496,2721.3,2721.0,6.67509]
[1739549828558,0.5496,2721.3,2721.1,3.67491]
[1739549828779,0.5496,2721.3,2721.2,3.67484]
[1739549829357,0.2496,2721.3,2721.2,3.67484]
[1739549829558,0.2496,2721.3,2721.2,5.28684]
[1739549830019,0.2496,2721.3,2721.2,12.16719882]
[1739549830625,0.2496,2721.3,2721.2,8.28684]
[1739549831637,0.3496,2721.3,2720.9,3.67517]
[1739549831782,0.3496,2721.3,2721.0,3.67503]
[1739549831982,0.3496,2721.3,2721.1,3.67497]
[1739549832379,0.3496,2721.3,2720.8,3.67537]
[1739549832380,0.2,2721.0,2720.8,3.67537]
[1739549832601,0.2,2720.8,2720.6,3.67563]
[1739549832807,0.2,2720.8,2720.6,3.67559]
[1739549833510,0.2,2720.8,2720.6,3.67558]
[1739549833741,0.2,2720.8,2720.7,3.67552]
[1739549834899,0.1,2720.5,2720.4,3.67583]
[1739549835336,0.3,2720.5,2720.2,3.67609]
[1739549835508,0.2,2720.3,2720.2,3.67609]
[1739549836183,0.2,2719.8,2719.5,1.612]
[1739549836430,0.2,2719.5,2719.4,3.67719]
[1739549836633,0.2,2719.3,2718.5,1.612]
[1739549836796,0.2,2719.1,2718.9,3.67791]
[1739549837231,0.3,2719.1,2718.9,3.67793]
[1739549837783,0.1,2718.9,2718.8,3.0]
[1739549838030,0.1,2718.9,2718.8,6.67809]
[1739549838230,0.2,2719.1,2718.9,3.67787]
[1739549838763,0.1,2719.0,2718.7,3.67822]
[1739549838944,0.1,2718.8,2718.7,3.67812]
[1739549839293,0.1,2718.8,2718.7,3.67822]
[1739549839491,0.1,2718.8,2718.6,3.67836]
[1739549839741,0.1,2718.5,2718.2,3.67884]
[1739549840088,0.3,2718.5,2718.2,3.67881]
[1739549840525,0.3,2718.5,2718.0,3.0]
[1739549840797,0.3,2718.5,2718.2,3.67884]
[1739549841287,0.1,2718.1,2717.8,7.35872]
[1739549841642,0.1,2718.1,2717.8,3.67934]
[1739549841840,0.1,2718.1,2717.9,3.67922]
[1739549841989,0.1,2718.1,2718.0,3.67917]
[1739549842331,4.96534168,2718.8,2716.3,5.87529618]
[1739549842332,0.2,2717.5,2716.3,5.87529618]
[1739549842545,0.1,2717.4,2717.1,3.68029]
[1739549842703,0.3,2717.2,2717.1,3.68029]
[1739549843337,0.3,2717.2,2716.9,3.68053]
[1739549843504,0.1,2717.0,2716.9,6.68053]
[1739549843702,0.1,2717.0,2716.9,3.68053]
[1739549844230,0.1,2717.0,2716.9,3.68066]
[1739549844632,0.1,2717.0,2716.7,3.6808]
[1739549844633,0.1,2717.2,2717.1,3.68026]
[1739549844832,0.3,2717.2,2717.1,3.68026]
[1739549845143,0.3,2717.2,2716.9,3.68053]
[1739549845642,0.3,2717.2,2717.1,3.68039]
[1739549846144,0.3,2717.2,2716.9,3.68053]
[1739549846316,0.2,2717.0,2716.9,3.68053]
[1739549846512,0.3,2717.0,2716.9,3.68053]
[1739549847318,0.2,2717.2,2717.1,3.68039]
[1739549847514,0.1,2717.5,2717.3,3.0]
[1739549847745,0.1,2717.5,2717.2,3.68025]
[1739549847746,0.1,2718.0,2717.6,3.0]
[1739549847903,0.1,2718.0,2717.4,3.03679324]
[1739549847904,0.1,2718.0,2717.9,3.67931]
[1739549848626,0.2,2717.9,2717.8,3.67944]
[1739549849047,0.1,2718.0,2717.9,3.67931]
[1739549849644,3.67833,2718.7,2717.8,3.67944]
[1739549849645,0.2,2718.4,2718.3,3.67876]
[1739549849946,0.3,2718.4,2718.3,3.67876]
[1739549850149,0.2,2718.1,2718.0,3.67917]
[1739549850811,0.1,2718.2,2718.1,3.67904]
[1739549851437,0.1,2718.4,2718.3,3.67876]
[1739549851647,0.2,2718.5,2718.4,3.67863]
[1739549851841,0.3,2718.8,2718.7,3.67822]
[1739549852002,0.2,2719.0,2718.9,3.67795]
[1739549852408,0.2,2718.8,2718.7,3.67818]
[1739549852660,0.1,2718.7,2718.6,3.67828]
[1739549852827,0.2,2718.8,2718.6,3.67828]
[1739549853029,0.1,2718.5,2718.4,6.67863]
[1739549853243,5.22278,2719.4,2718.7,3.67822]
[1739549853244,0.1,2718.9,2718.7,3.67822]
[1739549853443,0.1,2718.9,2718.8,3.67809]
[1739549853762,1.5454,2719.4,2718.9,3.67795]
[1739549853763,0.1,2719.1,2718.9,3.67795]
[1739549853965,0.2,2719.4,2719.3,3.67741]
[1739549854528,0.1,2719.3,2719.2,3.67755]
[1739549854751,0.1,2718.8,2718.7,3.67822]
[1739549855267,8.55405376,2719.7,2718.7,3.67822]
[1739549855268,0.1,2719.0,2718.8,3.67809]
[1739549855463,0.2,2719.1,2719.0,3.67782]
[1739549855768,0.1,2719.2,2719.1,3.67768]
[1739549856134,0.3,2718.9,2718.8,3.67801]
[1739549856777,0.3,2718.9,2718.0,3.67909]
[1739549856778,0.1,2718.3,2718.0,1.6626]
[1739549856925,0.1,2718.1,2718.0,3.67917]
[1739549857830,0.1,2718.1,2717.9,3.6793]
[1739549857831,0.3,2717.6,2717.5,3.67985]
[1739549858250,0.1,2717.4,2717.3,3.68002]
[1739549858728,0.3,2717.4,2717.3,3.68002]
[1739549860532,0.3,2717.6,2717.5,3.67985]
[1739549861261,0.3,2717.8,2717.5,7.3597]
[1739549861465,0.3,2717.8,2717.7,3.67958]
[1739549861666,0.1,2717.8,2717.7,3.67958]
[1739549862762,0.3,2718.0,2717.9,3.67931]
[1739549863169,0.1,2718.0,2717.9,3.67931]
[1739549863471,0.3,2718.4,2718.0,3.67917]
[1739549863669,3.67778,2719.1,2718.5,3.67849]
[1739549863670,0.3,2718.6,2718.5,3.67849]
[1739549864034,0.1,2718.6,2718.5,3.67849]
[1739549864174,0.3,2718.8,2718.5,0.03677777]
[1739549864374,0.3,2718.8,2718.7,3.67822]
[1739549864823,0.3,2719.0,2718.7,3.67822]
[1739549864989,0.18522334,2719.6,2719.3,3.67741]
[1739549864990,0.1,2719.4,2719.3,3.67741]
[1739549865193,0.1,2719.4,2719.3,3.71417834]
[1739549865194,0.3,2719.4,2719.3,3.71417834]
[1739549865431,0.3,2719.4,2719.3,3.67741]
[1739549865921,0.1,2719.4,2719.3,5.34001]
[1739549866125,0.3,2719.6,2719.5,3.67714]
[1739549866415,0.1,2719.6,2719.5,3.67714]